[Event "Titled Tuesday Blitz March 01 Early 2022"]
[White "Kukula, Pawel"]
[Black "Carlsson, Ludvig"]
[WhiteFideId "1115081"]
[BlackFideId "1727010"]
[WhiteElo "2203"]
[BlackElo "2178"]
[Result "1-0"]
[Round "10"]
[TimeControl "180+1"]
[Date "2022.03.01"]
[WhiteClock "0:00:52"]
[BlackClock "0:00:59"]

1. d4 {[%clk 0:02:58]}  d5 {[%clk 0:02:59]} 2. Nf3 {[%clk 0:02:57]}  Nf6 {[%clk 0:02:58]} 3. e3 {[%clk 0:02:57]}  Bg4 {[%clk 0:02:57]} 4. c4 {[%clk 0:02:56]}  e6 {[%clk 0:02:57]} 5. Qb3 {[%clk 0:02:55]}  Nc6 {[%clk 0:02:51]} 6. Nc3 {[%clk 0:02:52]}  a6 {[%clk 0:02:44]} 7. Bd2 {[%clk 0:02:51]}  Bxf3 {[%clk 0:02:32]} 8. gxf3 {[%clk 0:02:50]}  dxc4 {[%clk 0:02:31]} 9. Bxc4 {[%clk 0:02:39]}  Rb8 {[%clk 0:02:25]} 10. Ne4 {[%clk 0:02:31]}  Nxe4 {[%clk 0:02:24]} 11. fxe4 {[%clk 0:02:32]}  Bd6 {[%clk 0:02:18]} 12. h4 {[%clk 0:02:29]}  O-O {[%clk 0:02:17]} 13. h5 {[%clk 0:02:29]}  h6 {[%clk 0:02:16]} 14. O-O-O {[%clk 0:02:28]}  b5 {[%clk 0:02:12]} 15. Bd3 {[%clk 0:02:25]}  e5 {[%clk 0:02:09]} 16. d5 {[%clk 0:02:02]}  Ne7 {[%clk 0:02:03]} 17. f4 {[%clk 0:01:56]}  c5 {[%clk 0:02:01]} 18. dxc6 {[%clk 0:01:52]}  Nxc6 {[%clk 0:02:01]} 19. Kb1 {[%clk 0:01:52]}  Qe7 {[%clk 0:01:56]} 20. Rhg1 {[%clk 0:01:50]}  Kh8 {[%clk 0:01:55]} 21. Rg4 {[%clk 0:01:44]}  Qe6 {[%clk 0:01:51]} 22. Rdg1 {[%clk 0:01:37]}  Qxb3 {[%clk 0:01:49]} 23. axb3 {[%clk 0:01:38]}  Rg8 {[%clk 0:01:48]} 24. Bc3 {[%clk 0:01:24]}  Rbc8 {[%clk 0:01:45]} 25. Bf1 {[%clk 0:01:16]}  Rc7 {[%clk 0:01:42]} 26. Bh3 {[%clk 0:01:15]}  f6 {[%clk 0:01:33]} 27. Rg6 {[%clk 0:01:13]}  Rgc8 {[%clk 0:01:31]} 28. Bxc8 {[%clk 0:01:12]}  b4 {[%clk 0:01:27]} 29. fxe5 {[%clk 0:01:06]}  Bxe5 {[%clk 0:01:11]} 30. Bxe5 {[%clk 0:01:03]}  Nxe5 {[%clk 0:01:12]} 31. Bf5 {[%clk 0:01:01]}  a5 {[%clk 0:01:11]} 32. R6g2 {[%clk 0:00:59]}  a4 {[%clk 0:01:05]} 33. Rc2 {[%clk 0:00:56]}  Rxc2 {[%clk 0:01:02]} 34. Kxc2 {[%clk 0:00:57]}  axb3+ {[%clk 0:01:01]} 35. Kxb3 {[%clk 0:00:58]}  Nf3 {[%clk 0:01:00]} 36. Rd1 {[%clk 0:00:55]}  Kg8 {[%clk 0:00:59]} 37. Kxb4 {[%clk 0:00:52]} 1-0


[Site "https://www.chess.com"]

[Event "Titled Tuesday Blitz March 01 Early 2022"]
[White "Li, Ben"]
[Black "Horobetz, Graham"]
[WhiteFideId "2089980"]
[BlackFideId "2047322"]
[WhiteElo "2267"]
[BlackElo "2635"]
[Result "0-1"]
[Round "10"]
[TimeControl "180+1"]
[Date "2022.03.01"]
[WhiteClock "0:00:22"]
[BlackClock "0:00:25"]

1. d4 {[%clk 0:03:00]}  Nf6 {[%clk 0:02:59]} 2. c4 {[%clk 0:03:00]}  e6 {[%clk 0:03:00]} 3. Nf3 {[%clk 0:03:00]}  Bb4+ {[%clk 0:03:00]} 4. Bd2 {[%clk 0:03:01]}  Qe7 {[%clk 0:03:00]} 5. g3 {[%clk 0:03:00]}  Nc6 {[%clk 0:03:00]} 6. Nc3 {[%clk 0:03:00]}  Bxc3 {[%clk 0:02:59]} 7. Bxc3 {[%clk 0:03:01]}  Ne4 {[%clk 0:03:00]} 8. Rc1 {[%clk 0:03:01]}  Nxc3 {[%clk 0:03:00]} 9. Rxc3 {[%clk 0:03:02]}  O-O {[%clk 0:03:00]} 10. Bg2 {[%clk 0:03:02]}  d6 {[%clk 0:03:00]} 11. d5 {[%clk 0:03:02]}  Nb8 {[%clk 0:03:01]} 12. dxe6 {[%clk 0:03:02]}  fxe6 {[%clk 0:03:01]} 13. Nd4 {[%clk 0:03:03]}  e5 {[%clk 0:03:01]} 14. Nc2 {[%clk 0:03:03]}  Nc6 {[%clk 0:03:01]} 15. O-O {[%clk 0:02:59]}  Be6 {[%clk 0:03:00]} 16. b4 {[%clk 0:02:58]}  Kh8 {[%clk 0:02:45]} 17. Qd2 {[%clk 0:02:55]}  Bf5 {[%clk 0:02:42]} 18. Ne3 {[%clk 0:02:32]}  Be6 {[%clk 0:02:41]} 19. a3 {[%clk 0:02:30]}  Rab8 {[%clk 0:02:34]} 20. c5 {[%clk 0:02:25]}  Nd4 {[%clk 0:02:31]} 21. cxd6 {[%clk 0:02:25]}  cxd6 {[%clk 0:02:32]} 22. Rfc1 {[%clk 0:02:17]}  Qf6 {[%clk 0:02:27]} 23. Qe1 {[%clk 0:02:14]}  Rf7 {[%clk 0:02:07]} 24. Nd5 {[%clk 0:02:14]}  Qg5 {[%clk 0:01:54]} 25. h4 {[%clk 0:02:03]}  Qg4 {[%clk 0:01:48]} 26. Re3 {[%clk 0:01:46]}  Rbf8 {[%clk 0:01:44]} 27. Nc7 {[%clk 0:01:16]}  Bc8 {[%clk 0:01:33]} 28. Bd5 {[%clk 0:01:15]}  Rf6 {[%clk 0:01:22]} 29. a4 {[%clk 0:01:13]}  Qf5 {[%clk 0:01:13]} 30. f3 {[%clk 0:01:12]}  Qh3 {[%clk 0:01:09]} 31. Be4 {[%clk 0:01:02]}  Bf5 {[%clk 0:01:00]} 32. g4 {[%clk 0:00:36]}  Bxe4 {[%clk 0:00:51]} 33. Rxe4 {[%clk 0:00:37]}  Rxf3 {[%clk 0:00:51]} 34. exf3 {[%clk 0:00:35]}  Nxf3+ {[%clk 0:00:50]} 35. Kf2 {[%clk 0:00:35]}  Qxh4+ {[%clk 0:00:47]} 36. Ke2 {[%clk 0:00:32]}  Qh2+ {[%clk 0:00:44]} 37. Kd3 {[%clk 0:00:26]}  Nxe1+ {[%clk 0:00:44]} 38. Rcxe1 {[%clk 0:00:26]}  Rc8 {[%clk 0:00:36]} 39. Rc4 {[%clk 0:00:24]}  h6 {[%clk 0:00:32]} 40. Re3 {[%clk 0:00:21]}  Qg1 {[%clk 0:00:31]} 41. a5 {[%clk 0:00:19]}  Qd1+ {[%clk 0:00:30]} 42. Kc3 {[%clk 0:00:19]}  Rxc7 {[%clk 0:00:27]} 43. Rxc7 {[%clk 0:00:18]}  Qc1+ {[%clk 0:00:27]} 44. Kb3 {[%clk 0:00:19]}  Qxc7 {[%clk 0:00:27]} 45. Rc3 {[%clk 0:00:19]}  Qf7+ {[%clk 0:00:26]} 46. Ka4 {[%clk 0:00:19]}  a6 {[%clk 0:00:26]} 47. b5 {[%clk 0:00:20]}  Qd7 {[%clk 0:00:26]} 48. Ka3 {[%clk 0:00:20]}  Qxb5 {[%clk 0:00:26]} 49. g5 {[%clk 0:00:21]}  Qxa5+ {[%clk 0:00:26]} 50. Kb3 {[%clk 0:00:21]}  Qxc3+ {[%clk 0:00:27]} 51. Ka4 {[%clk 0:00:22]}  Qc6+ {[%clk 0:00:25]} 52. Ka5 {[%clk 0:00:22]}  Qb5# {[%clk 0:00:25]} 0-1


[Site "https://www.chess.com"]

[Event "Titled Tuesday Blitz March 01 Early 2022"]
[White "Martinez, Shawn"]
[Black "Tomiello, Mateus Costamilan"]
[WhiteFideId "2039770"]
[BlackFideId "22701958"]
[WhiteElo "2174"]
[BlackElo "1975"]
[Result "0-1"]
[Round "10"]
[TimeControl "180+1"]
[Date "2022.03.01"]
[WhiteClock "0:00:38"]
[BlackClock "0:01:02"]

1. e4 {[%clk 0:02:54]}  e5 {[%clk 0:02:59]} 2. Nf3 {[%clk 0:02:52]}  Nc6 {[%clk 0:03:00]} 3. d4 {[%clk 0:02:49]}  exd4 {[%clk 0:02:59]} 4. Nxd4 {[%clk 0:02:48]}  Nf6 {[%clk 0:03:00]} 5. Nxc6 {[%clk 0:02:45]}  bxc6 {[%clk 0:03:00]} 6. e5 {[%clk 0:02:46]}  Qe7 {[%clk 0:03:00]} 7. Qe2 {[%clk 0:02:45]}  Nd5 {[%clk 0:03:00]} 8. c4 {[%clk 0:02:45]}  Ba6 {[%clk 0:03:00]} 9. Qe4 {[%clk 0:02:37]}  Nb6 {[%clk 0:02:25]} 10. Nc3 {[%clk 0:02:24]}  f6 {[%clk 0:02:24]} 11. exf6 {[%clk 0:02:18]}  gxf6 {[%clk 0:02:24]} 12. Qxe7+ {[%clk 0:02:00]}  Bxe7 {[%clk 0:02:23]} 13. b3 {[%clk 0:02:00]}  d5 {[%clk 0:02:16]} 14. cxd5 {[%clk 0:01:57]}  Bxf1 {[%clk 0:02:15]} 15. Rxf1 {[%clk 0:01:56]}  cxd5 {[%clk 0:02:15]} 16. Bf4 {[%clk 0:01:52]}  Bb4 {[%clk 0:02:13]} 17. Bd2 {[%clk 0:01:51]}  Kf7 {[%clk 0:02:09]} 18. O-O-O {[%clk 0:01:47]}  c5 {[%clk 0:02:03]} 19. Nb5 {[%clk 0:01:44]}  Bxd2+ {[%clk 0:01:59]} 20. Rxd2 {[%clk 0:01:43]}  d4 {[%clk 0:02:00]} 21. Re1 {[%clk 0:01:40]}  Rad8 {[%clk 0:01:58]} 22. Rde2 {[%clk 0:01:37]}  Rd7 {[%clk 0:01:57]} 23. Re6 {[%clk 0:01:33]}  Rhd8 {[%clk 0:01:51]} 24. Rc6 {[%clk 0:01:25]}  Nd5 {[%clk 0:01:23]} 25. Ree6 {[%clk 0:01:18]}  Nb4 {[%clk 0:01:16]} 26. Rxf6+ {[%clk 0:01:17]}  Kg7 {[%clk 0:01:17]} 27. Nc7 {[%clk 0:01:10]}  Nxc6 {[%clk 0:01:14]} 28. Rxc6 {[%clk 0:01:10]}  Kh8 {[%clk 0:01:10]} 29. f4 {[%clk 0:01:07]}  Rc8 {[%clk 0:01:09]} 30. f5 {[%clk 0:00:55]}  Rcxc7 {[%clk 0:01:09]} 31. Re6 {[%clk 0:00:55]}  Rf7 {[%clk 0:01:08]} 32. g4 {[%clk 0:00:54]}  Rce7 {[%clk 0:01:07]} 33. Rc6 {[%clk 0:00:53]}  Re2 {[%clk 0:01:03]} 34. f6 {[%clk 0:00:46]}  h6 {[%clk 0:01:04]} 35. h4 {[%clk 0:00:45]}  Rg2 {[%clk 0:01:03]} 36. Rxc5 {[%clk 0:00:38]}  Rxg4 {[%clk 0:01:02]} 0-1


[Site "https://www.chess.com"]

[Event "Titled Tuesday Blitz March 01 Early 2022"]
[White "Mohammadian, Mohammad"]
[Black "Piliczewski, Bogusz"]
[WhiteFideId "12566055"]
[BlackFideId "1104144"]
[WhiteElo "1543"]
[BlackElo "1896"]
[Result "0-1"]
[Round "10"]
[TimeControl "180+1"]
[Date "2022.03.01"]
[WhiteClock "0:00:03"]
[BlackClock "0:00:58"]

1. e4 {[%clk 0:03:00]}  c6 {[%clk 0:02:59]} 2. d4 {[%clk 0:02:59]}  d5 {[%clk 0:02:59]} 3. Nd2 {[%clk 0:02:59]}  dxe4 {[%clk 0:02:59]} 4. Nxe4 {[%clk 0:02:59]}  Bf5 {[%clk 0:02:59]} 5. Ng3 {[%clk 0:02:59]}  Bg6 {[%clk 0:03:00]} 6. Nf3 {[%clk 0:02:59]}  Nd7 {[%clk 0:02:59]} 7. c4 {[%clk 0:02:59]}  e6 {[%clk 0:02:56]} 8. Bd3 {[%clk 0:02:57]}  Bb4+ {[%clk 0:02:49]} 9. Bd2 {[%clk 0:02:20]}  Bxd3 {[%clk 0:02:47]} 10. Bxb4 {[%clk 0:02:18]}  Bxc4 {[%clk 0:02:48]} 11. b3 {[%clk 0:02:14]}  Ba6 {[%clk 0:02:44]} 12. Qd2 {[%clk 0:02:03]}  Ne7 {[%clk 0:02:39]} 13. O-O-O {[%clk 0:02:01]}  O-O {[%clk 0:02:33]} 14. Rhe1 {[%clk 0:02:00]}  Re8 {[%clk 0:02:29]} 15. Kb2 {[%clk 0:01:59]}  Nd5 {[%clk 0:02:28]} 16. Ba3 {[%clk 0:01:51]}  b5 {[%clk 0:02:24]} 17. Kb1 {[%clk 0:01:44]}  Qb6 {[%clk 0:02:15]} 18. Rc1 {[%clk 0:01:26]}  b4 {[%clk 0:02:09]} 19. Bb2 {[%clk 0:01:25]}  Rac8 {[%clk 0:01:53]} 20. Ka1 {[%clk 0:01:24]}  Bb5 {[%clk 0:01:48]} 21. Qc2 {[%clk 0:01:18]}  a5 {[%clk 0:01:46]} 22. Ng5 {[%clk 0:01:18]}  Nf8 {[%clk 0:01:42]} 23. N3e4 {[%clk 0:01:11]}  Red8 {[%clk 0:01:31]} 24. Nc5 {[%clk 0:01:00]}  h6 {[%clk 0:01:29]} 25. Nge4 {[%clk 0:00:30]}  Ra8 {[%clk 0:01:28]} 26. a4 {[%clk 0:00:22]}  bxa3 {[%clk 0:01:23]} 27. Bxa3 {[%clk 0:00:19]}  Ra7 {[%clk 0:01:01]} 28. Rb1 {[%clk 0:00:14]}  Rda8 {[%clk 0:01:00]} 29. Nd6 {[%clk 0:00:03]}  Nb4 {[%clk 0:00:58]} 0-1


[Site "https://www.chess.com"]

[Event "Titled Tuesday Blitz March 01 Early 2022"]
[White "Oparin, Grigoriy"]
[Black "Dubov, Daniil"]
[WhiteFideId "24125890"]
[BlackFideId "24126055"]
[WhiteElo "2685"]
[BlackElo "2791"]
[Result "1-0"]
[Round "10"]
[TimeControl "180+1"]
[Date "2022.03.01"]
[WhiteClock "0:00:14"]
[BlackClock "0:00:14"]

1. d4 {[%clk 0:03:00]}  e5 {[%clk 0:02:58]} 2. dxe5 {[%clk 0:02:59]}  Nc6 {[%clk 0:02:58]} 3. Nf3 {[%clk 0:02:59]}  Qe7 {[%clk 0:02:59]} 4. Nc3 {[%clk 0:02:52]}  Nxe5 {[%clk 0:02:58]} 5. Nd5 {[%clk 0:02:50]}  Nxf3+ {[%clk 0:02:58]} 6. gxf3 {[%clk 0:02:51]}  Qd8 {[%clk 0:02:58]} 7. Bf4 {[%clk 0:02:48]}  d6 {[%clk 0:02:58]} 8. Qd4 {[%clk 0:02:47]}  Ne7 {[%clk 0:02:52]} 9. Bg5 {[%clk 0:02:37]}  f6 {[%clk 0:02:50]} 10. Bd2 {[%clk 0:02:23]}  Nxd5 {[%clk 0:02:41]} 11. Qxd5 {[%clk 0:02:23]}  c6 {[%clk 0:02:26]} 12. Qd3 {[%clk 0:02:23]}  Be6 {[%clk 0:02:25]} 13. O-O-O {[%clk 0:02:11]}  Qe7 {[%clk 0:02:23]} 14. e4 {[%clk 0:02:01]}  O-O-O {[%clk 0:02:21]} 15. Qa3 {[%clk 0:02:01]}  a6 {[%clk 0:02:17]} 16. Bb4 {[%clk 0:01:57]}  Qf7 {[%clk 0:02:11]} 17. f4 {[%clk 0:01:19]}  f5 {[%clk 0:02:02]} 18. e5 {[%clk 0:01:06]}  d5 {[%clk 0:02:00]} 19. h4 {[%clk 0:01:04]}  Rd7 {[%clk 0:01:48]} 20. c3 {[%clk 0:00:59]}  Rc7 {[%clk 0:01:35]} 21. Bc5 {[%clk 0:00:57]}  Be7 {[%clk 0:01:27]} 22. Bxe7 {[%clk 0:00:56]}  Rxe7 {[%clk 0:01:24]} 23. Qc5 {[%clk 0:00:56]}  Kc7 {[%clk 0:01:19]} 24. Be2 {[%clk 0:00:54]}  b6 {[%clk 0:01:16]} 25. Qa3 {[%clk 0:00:50]}  a5 {[%clk 0:01:15]} 26. Rhg1 {[%clk 0:00:50]}  c5 {[%clk 0:01:09]} 27. b4 {[%clk 0:00:43]}  axb4 {[%clk 0:00:39]} 28. cxb4 {[%clk 0:00:40]}  Rb8 {[%clk 0:00:38]} 29. bxc5 {[%clk 0:00:34]}  bxc5 {[%clk 0:00:37]} 30. Qxc5+ {[%clk 0:00:35]}  Kb7 {[%clk 0:00:36]} 31. Kd2 {[%clk 0:00:22]}  Rc8 {[%clk 0:00:27]} 32. Ba6+ {[%clk 0:00:14]}  Ka8 {[%clk 0:00:13]} 33. Bxc8 {[%clk 0:00:14]}  Bxc8 {[%clk 0:00:14]} 34. Qxc8+ {[%clk 0:00:14]} 1-0


[Site "https://www.chess.com"]

[Event "Titled Tuesday Blitz March 01 Early 2022"]
[White "Pajeken, Jakob Leon"]
[Black "Brunner, Nicolas"]
[WhiteFideId "12942839"]
[BlackFideId "620246"]
[WhiteElo "2351"]
[BlackElo "2372"]
[Result "1/2-1/2"]
[Round "10"]
[TimeControl "180+1"]
[Date "2022.03.01"]
[WhiteClock "0:02:36"]
[BlackClock "0:02:31"]

1. d4 {[%clk 0:02:58]}  d5 {[%clk 0:02:59]} 2. Nf3 {[%clk 0:02:58]}  Nf6 {[%clk 0:02:59]} 3. c4 {[%clk 0:02:59]}  e6 {[%clk 0:02:59]} 4. e3 {[%clk 0:02:58]}  Be7 {[%clk 0:02:57]} 5. Nc3 {[%clk 0:02:54]}  O-O {[%clk 0:02:54]} 6. Be2 {[%clk 0:02:52]}  b6 {[%clk 0:02:49]} 7. O-O {[%clk 0:02:50]}  Bb7 {[%clk 0:02:49]} 8. cxd5 {[%clk 0:02:49]}  Nxd5 {[%clk 0:02:49]} 9. Bd3 {[%clk 0:02:47]}  Nd7 {[%clk 0:02:45]} 10. e4 {[%clk 0:02:46]}  Nxc3 {[%clk 0:02:44]} 11. bxc3 {[%clk 0:02:45]}  c5 {[%clk 0:02:44]} 12. Qe2 {[%clk 0:02:43]}  Qc7 {[%clk 0:02:40]} 13. Bg5 {[%clk 0:02:41]}  Bxg5 {[%clk 0:02:35]} 14. Nxg5 {[%clk 0:02:42]}  h6 {[%clk 0:02:35]} 15. Nf3 {[%clk 0:02:39]}  Rfd8 {[%clk 0:02:35]} 16. Rac1 {[%clk 0:02:36]}  Rac8 {[%clk 0:02:33]} 17. Qe3 {[%clk 0:02:36]}  Nf6 {[%clk 0:02:31]} 1/2-1/2


[Site "https://www.chess.com"]

[Event "Titled Tuesday Blitz March 01 Early 2022"]
[White "Politov, Pavel Y."]
[Black "Polster, Christian"]
[WhiteFideId "24110515"]
[BlackFideId "12965081"]
[WhiteElo "2090"]
[BlackElo "2293"]
[Result "1-0"]
[Round "10"]
[TimeControl "180+1"]
[Date "2022.03.01"]
[WhiteClock "0:00:31"]
[BlackClock "0:00:02"]

1. e4 {[%clk 0:03:00]}  c5 {[%clk 0:02:55]} 2. Nf3 {[%clk 0:03:00]}  d6 {[%clk 0:02:44]} 3. d4 {[%clk 0:03:00]}  cxd4 {[%clk 0:02:45]} 4. Nxd4 {[%clk 0:03:01]}  Nf6 {[%clk 0:02:45]} 5. Nc3 {[%clk 0:03:01]}  a6 {[%clk 0:02:44]} 6. Bg5 {[%clk 0:03:02]}  Nbd7 {[%clk 0:02:42]} 7. Qe2 {[%clk 0:02:48]}  h6 {[%clk 0:02:31]} 8. Bh4 {[%clk 0:02:45]}  g6 {[%clk 0:02:27]} 9. f4 {[%clk 0:02:44]}  Bg7 {[%clk 0:02:26]} 10. O-O-O {[%clk 0:02:35]}  e5 {[%clk 0:02:16]} 11. fxe5 {[%clk 0:02:32]}  dxe5 {[%clk 0:02:16]} 12. Nd5 {[%clk 0:02:20]}  g5 {[%clk 0:00:56]} 13. Nf5 {[%clk 0:02:10]}  Nxd5 {[%clk 0:00:55]} 14. exd5 {[%clk 0:01:51]}  gxh4 {[%clk 0:00:52]} 15. Nxg7+ {[%clk 0:01:50]}  Kf8 {[%clk 0:00:52]} 16. Nf5 {[%clk 0:01:47]}  Qg5+ {[%clk 0:00:51]} 17. Ne3 {[%clk 0:01:46]}  Nf6 {[%clk 0:00:49]} 18. Kb1 {[%clk 0:01:33]}  Bd7 {[%clk 0:00:44]} 19. Nc4 {[%clk 0:01:27]}  e4 {[%clk 0:00:39]} 20. Qe3 {[%clk 0:01:21]}  Kg7 {[%clk 0:00:37]} 21. Be2 {[%clk 0:01:17]}  Bb5 {[%clk 0:00:27]} 22. Qd4 {[%clk 0:01:05]}  Rhd8 {[%clk 0:00:20]} 23. Ne3 {[%clk 0:01:02]}  Bxe2 {[%clk 0:00:17]} 24. Rde1 {[%clk 0:01:00]}  Bg4 {[%clk 0:00:16]} 25. h3 {[%clk 0:00:58]}  Be6 {[%clk 0:00:16]} 26. c4 {[%clk 0:00:58]}  b5 {[%clk 0:00:16]} 27. b3 {[%clk 0:00:56]}  bxc4 {[%clk 0:00:16]} 28. bxc4 {[%clk 0:00:56]}  Rab8+ {[%clk 0:00:16]} 29. Ka1 {[%clk 0:00:55]}  Bd7 {[%clk 0:00:15]} 30. Rhf1 {[%clk 0:00:54]}  Re8 {[%clk 0:00:15]} 31. Rf2 {[%clk 0:00:52]}  Qe5 {[%clk 0:00:15]} 32. Qxe5 {[%clk 0:00:50]}  Rxe5 {[%clk 0:00:16]} 33. Ref1 {[%clk 0:00:50]}  Rb6 {[%clk 0:00:10]} 34. c5 {[%clk 0:00:48]}  Rb5 {[%clk 0:00:08]} 35. Rxf6 {[%clk 0:00:47]}  Rxc5 {[%clk 0:00:07]} 36. Rxf7+ {[%clk 0:00:47]}  Kg8 {[%clk 0:00:08]} 37. Rxd7 {[%clk 0:00:47]}  Rc3 {[%clk 0:00:05]} 38. Ng4 {[%clk 0:00:32]}  Rg5 {[%clk 0:00:02]} 39. Nxh6+ {[%clk 0:00:30]}  Kh8 {[%clk 0:00:02]} 40. Rf8+ {[%clk 0:00:31]} 1-0


[Site "https://www.chess.com"]

[Event "Titled Tuesday Blitz March 01 Early 2022"]
[White "Prado Lobo, Jonas"]
[Black "Kett, Tim"]
[WhiteFideId "32050666"]
[BlackFideId "1801210"]
[WhiteElo "2199"]
[BlackElo "2098"]
[Result "1-0"]
[Round "10"]
[TimeControl "180+1"]
[Date "2022.03.01"]
[WhiteClock "0:00:05"]
[BlackClock "0:00:05"]

1. d4 {[%clk 0:03:00]}  d5 {[%clk 0:02:44]} 2. c4 {[%clk 0:02:59]}  e6 {[%clk 0:02:44]} 3. Nc3 {[%clk 0:02:58]}  Nf6 {[%clk 0:02:44]} 4. cxd5 {[%clk 0:02:59]}  exd5 {[%clk 0:02:44]} 5. Bg5 {[%clk 0:02:59]}  c6 {[%clk 0:02:45]} 6. Qc2 {[%clk 0:02:59]}  Be7 {[%clk 0:02:45]} 7. e3 {[%clk 0:02:59]}  Nbd7 {[%clk 0:02:46]} 8. Bd3 {[%clk 0:03:00]}  O-O {[%clk 0:02:46]} 9. Nge2 {[%clk 0:03:00]}  h6 {[%clk 0:02:47]} 10. Bh4 {[%clk 0:03:00]}  Nh5 {[%clk 0:02:42]} 11. Bxe7 {[%clk 0:02:55]}  Qxe7 {[%clk 0:02:42]} 12. O-O-O {[%clk 0:02:48]}  b5 {[%clk 0:02:22]} 13. g4 {[%clk 0:02:46]}  Nhf6 {[%clk 0:02:20]} 14. Ng3 {[%clk 0:02:10]}  Nb6 {[%clk 0:02:16]} 15. Rdg1 {[%clk 0:01:26]}  Bxg4 {[%clk 0:02:09]} 16. Bf5 {[%clk 0:01:23]}  Bf3 {[%clk 0:02:08]} 17. Bh3 {[%clk 0:01:09]}  Bxh1 {[%clk 0:02:06]} 18. Nf5 {[%clk 0:01:08]}  Qb7 {[%clk 0:01:43]} 19. Nxg7 {[%clk 0:00:44]}  Kh8 {[%clk 0:01:32]} 20. Qf5 {[%clk 0:00:40]}  Qe7 {[%clk 0:01:27]} 21. Qf4 {[%clk 0:00:40]}  Ng8 {[%clk 0:01:23]} 22. Nf5 {[%clk 0:00:28]}  Qf6 {[%clk 0:01:20]} 23. Rxh1 {[%clk 0:00:28]}  Nc4 {[%clk 0:01:04]} 24. Rg1 {[%clk 0:00:27]}  Rae8 {[%clk 0:00:56]} 25. Qg3 {[%clk 0:00:20]}  b4 {[%clk 0:00:46]} 26. Ne2 {[%clk 0:00:20]}  Re4 {[%clk 0:00:41]} 27. Nf4 {[%clk 0:00:20]}  c5 {[%clk 0:00:25]} 28. Nh5 {[%clk 0:00:20]}  Qg6 {[%clk 0:00:24]} 29. Qxg6 {[%clk 0:00:13]}  fxg6 {[%clk 0:00:23]} 30. Rxg6 {[%clk 0:00:13]}  cxd4 {[%clk 0:00:21]} 31. Nxh6 {[%clk 0:00:13]}  dxe3 {[%clk 0:00:18]} 32. Nxg8 {[%clk 0:00:13]}  e2 {[%clk 0:00:15]} 33. Ngf6 {[%clk 0:00:05]}  e1=Q+ {[%clk 0:00:14]} 34. Kc2 {[%clk 0:00:06]}  Qd2+ {[%clk 0:00:13]} 35. Kb3 {[%clk 0:00:06]}  Qd3+ {[%clk 0:00:12]} 36. Ka4 {[%clk 0:00:07]}  Nb6+ {[%clk 0:00:12]} 37. Ka5 {[%clk 0:00:07]}  Rxf6 {[%clk 0:00:09]} 38. Nxf6 {[%clk 0:00:07]}  Rd4 {[%clk 0:00:05]} 39. Rg8# {[%clk 0:00:05]} 1-0


[Site "https://www.chess.com"]

[Event "Titled Tuesday Blitz March 01 Early 2022"]
[White "Risteski, Emil"]
[Black "Neiksans, Arturs"]
[WhiteFideId "15005267"]
[BlackFideId "11601388"]
[WhiteElo "2070"]
[BlackElo "2447"]
[Result "0-1"]
[Round "10"]
[TimeControl "180+1"]
[Date "2022.03.01"]
[WhiteClock "0:00:09"]
[BlackClock "0:01:31"]

1. e4 {[%clk 0:03:00]}  c5 {[%clk 0:02:59]} 2. Be2 {[%clk 0:02:55]}  Nc6 {[%clk 0:02:52]} 3. f4 {[%clk 0:02:55]}  e6 {[%clk 0:02:51]} 4. Nf3 {[%clk 0:02:54]}  d5 {[%clk 0:02:52]} 5. d3 {[%clk 0:02:55]}  Bd6 {[%clk 0:02:52]} 6. O-O {[%clk 0:02:53]}  Nge7 {[%clk 0:02:51]} 7. c3 {[%clk 0:02:52]}  f6 {[%clk 0:02:50]} 8. Na3 {[%clk 0:02:48]}  a6 {[%clk 0:02:41]} 9. Nc2 {[%clk 0:02:48]}  Qc7 {[%clk 0:02:41]} 10. g3 {[%clk 0:02:46]}  Bd7 {[%clk 0:02:40]} 11. a3 {[%clk 0:02:45]}  h5 {[%clk 0:02:29]} 12. Nh4 {[%clk 0:02:28]}  O-O-O {[%clk 0:02:27]} 13. Kg2 {[%clk 0:01:55]}  Rdg8 {[%clk 0:02:23]} 14. f5 {[%clk 0:01:54]}  Ne5 {[%clk 0:02:18]} 15. exd5 {[%clk 0:01:22]}  Nxd5 {[%clk 0:02:12]} 16. d4 {[%clk 0:01:16]}  Bc6 {[%clk 0:01:58]} 17. Kh3 {[%clk 0:00:48]}  g5 {[%clk 0:01:51]} 18. fxg6 {[%clk 0:00:34]}  Nxg6 {[%clk 0:01:49]} 19. dxc5 {[%clk 0:00:24]}  Bxg3 {[%clk 0:01:38]} 20. hxg3 {[%clk 0:00:17]}  Nxh4 {[%clk 0:01:38]} 21. Bf4 {[%clk 0:00:17]}  Nxf4+ {[%clk 0:01:38]} 22. Rxf4 {[%clk 0:00:16]}  Rxg3+ {[%clk 0:01:31]} 23. Kxg3 {[%clk 0:00:15]}  Rg8+ {[%clk 0:01:32]} 24. Kxh4 {[%clk 0:00:09]}  Qxf4+ {[%clk 0:01:31]} 25. Kxh5 {[%clk 0:00:09]}  Qg5# {[%clk 0:01:31]} 0-1


[Site "https://www.chess.com"]